[Event "FIDE WSCC 65 2022"]
[Site "Assisi"]
[Date "2022.11.19"]
[Round "5.1"]
[White "Nunn, John D M"]
[Black "Hebert, Jean"]
[Result "1-0"]
[ECO "C10"]
[WhiteElo "2580"]
[BlackElo "2333"]
[Annotator "TA"]
[PlyCount "49"]
[EventDate "2022.11.14"]
[EventType "swiss"]
[EventCountry "ITA"]
[SourceTitle "playchess.com"]
[Source "ChessBase"]
[SourceQuality "1"]
[TimeControl "40/5400+30:1800+30"]

{[%evp 9,49,24,23,26,42,37,45,37,41,43,46,18,114,126,137,133,145,100,94,91,170,185,204,114,234,239,250,262,272,217,610,579,677,715,1090,1000,1968,1913,1722,966,1811,1787]} 1. e4 {[%emt 0:00:11][%cal Be2e4,Be4e5][%mdl 32]} e6 {[%emt 0:00:13]} 2. d4 {[%emt 0:00:08]} d5 {[%emt 0:00:13]} 3. Nc3 {[%emt 0:00:10]} Nc6 {[%emt 0:00:32]} 4. e5 {[%emt 0:00:54]} Bd7 {[%emt 0:00:44]} 5. f4 {[%emt 0:01:53]} Nh6 {[%emt 0:05:38]} 6. Be3 {[%emt 0:00:48] C10: French with 3 Nc3: Unusual Black 3rd moves and 3...dxe4.} f6 {[%emt 0:04:00]} 7. Nf3 {[%emt 0:03:54] [#]} Nf5 $146 {[%emt 0:02:13]} ({Predecessor:} 7... Qe7 8. Qd2 O-O-O 9. a3 Qf7 10. O-O-O Nf5 11. Bf2 h5 12. Bd3 Be7 13. Rhe1 fxe5 14. fxe5 {0-1 (39) Kapferer,R (2080)-Hecht,H (2405) Schwarzach 1998}) 8. Bf2 {[%emt 0:00:32] White is slightly better.} fxe5 {[%emt 0:00:15]} 9. dxe5 {[%emt 0:11:08]} Bb4 {[%emt 0:06:32][%cal Od5d4]} 10. a3 {[%emt 0:05:52]} Be7 {[%emt 0:04:50]} (10... Bxc3+ $11 11. bxc3 O-O) 11. Qd2 $16 {[%emt 0:01:08]} (11. g4 Nh4 $14) 11... O-O {[%emt 0:03:00]} 12. O-O-O {[%emt 0:00:37][%cal Oc3d5] Strongly threatening Nxd5!} Kh8 {[%emt 0:03:22]} 13. g4 {[%emt 0:02:41]} Nh6 {[%emt 0:03:52]} 14. Rg1 $36 {[%emt 0:08:42][%mdl 2048] Black is under strong pressure. White is more active.} Qe8 {[%emt 0:03:34]} (14... a6 $16) 15. h4 $18 {[%emt 0:03:48]} b5 {[%emt 0:06:10]} 16. f5 {[%emt 0:20:49]} ({Much less strong is} 16. Nxb5 $6 Nxe5 17. Nfd4 (17. fxe5 Bxb5 18. Nd4 Bd7 $11) 17... Nhxg4 $16) (16. Bxb5 $18 {And now Ng5 would win.} Nxe5 17. Bxd7 (17. fxe5 Rxf3 18. Bd3 c5 $11) (17. Nxe5 Bxb5 18. Rde1 a6 $16) 17... Nxd7 18. f5) 16... b4 {[%emt 0:17:48]} (16... exf5 $16 17. Nxd5 Rd8) 17. axb4 {[%emt 0:00:09] Threatens to win with b5.} Bxb4 {[%emt 0:01:21]} 18. f6 {[%emt 0:00:33]} Ng8 {[%emt 0:07:01]} 19. g5 {[%emt 0:01:28]} Nge7 $2 {[%emt 0:00:54] [#]} (19... a5 20. Qd3 Rb8) 20. g6 {[%emt 0:04:26] White is clearly winning.} Nf5 {[%emt 0:08:14]} 21. Bd3 {[%emt 0:02:19]} ({Not} 21. f7 Qe7 $18) 21... hxg6 {[%emt 0:02:25]} 22. h5 {[%emt 0:00:15]} gxf6 {[%emt 0:03:13]} 23. Bxf5 {[%emt 0:00:14]} g5 {[%emt 0:00:16]} 24. exf6 {[%emt 0:07:22]} Qf7 {[%emt 0:01:25] [#]} 25. Rxg5 $1 {[%emt 0:01:15] Weighted Error Value: White=0.15 (very precise) /Black=0.71} 1-0

[Event "FIDE WSCC 65 2022"]
[Site "Assisi"]
[Date "2022.11.19"]
[Round "5.2"]
[White "Jansa, Vlastimil"]
[Black "Sideifzade, Fikret"]
[Result "1/2-1/2"]
[ECO "C92"]
[WhiteElo "2390"]
[BlackElo "2391"]
[Annotator "TA"]
[PlyCount "47"]
[EventDate "2022.11.14"]
[EventType "swiss"]
[EventCountry "ITA"]
[SourceTitle "playchess.com"]
[Source "ChessBase"]
[SourceQuality "1"]
[TimeControl "40/5400+30:1800+30"]

{[%evp 27,47,28,47,20,17,25,26,-2,0,0,0,-16,28,42,32,-33,-33,-28,25,34,32,15]} 1. e4 {[%emt 0:00:07]} e5 {[%emt 0:00:21]} 2. Nf3 {[%emt 0:00:07]} Nc6 {[%emt 0:00:10]} 3. Bb5 {[%emt 0:00:13][%cal Bf1b5,Bb5a4,Ba4b3][%mdl 32]} a6 {[%emt 0:00:11]} 4. Ba4 {[%emt 0:00:07]} Nf6 {[%emt 0:00:09]} 5. O-O {[%emt 0:00:09]} Be7 {[%emt 0:00:17]} 6. Re1 {[%emt 0:00:36]} b5 {[%emt 0:00:15]} 7. Bb3 {[%emt 0:00:05]} O-O {[%emt 0:00:56]} 8. h3 {[%emt 0:03:25]} d6 {[%emt 0:01:42]} 9. c3 {[%emt 0:00:18][%cal Bc2c3,Bc3d4,Bd4d5][%mdl 32]} Nd7 {[%emt 0:06:01]} 10. d4 {[%emt 0:00:48]} Nb6 {[%emt 0:00:11]} 11. Nbd2 {[%emt 0:06:25][%cal Bb1d2,Bd2f1,Bf1h2,Bh2f3,Bf3g5,Bg5e4][%mdl 32]} exd4 {[%emt 0:02:40]} 12. cxd4 {[%emt 0:00:19]} Nb4 {[%emt 0:00:07]} 13. Nf1 {[%emt 0:05:37]} c5 {[%emt 0:00:48]} 14. a3 {[%emt 0:15:24]} Nc6 $1 {[%emt 0:00:42]} 15. d5 {[%emt 0:07:30] C92: Closed Ruy Lopez: 9...Be6, Karpov and Flohr-Zaitsev Variations.} Ne5 {[%emt 0:01:14]} 16. Nxe5 {[%emt 0:00:36]} dxe5 {[%emt 0:00:03] [#]} 17. Nh2 $146 {[%emt 0:02:10] White has an edge.} ({Predecessor:} 17. Be3 Bd6 18. Qd2 Bd7 19. Rec1 Qe7 20. Qa5 Rfb8 21. Nd2 Be8 22. Bd1 Nd7 23. a4 {0-1 (40) Shirov,A (2690)-Piket,J (2640) Linares 1997}) 17... Bd6 {[%emt 0:05:59]} 18. Qh5 {[%emt 0:02:43]} f5 {[%emt 0:15:46]} 19. Nf3 {[%emt 0:05:18]} Qe8 {[%emt 0:15:13]} 20. Qxe8 {[%emt 0:01:03]} Rxe8 {[%emt 0:00:02]} 21. a4 {[%emt 0:00:53]} (21. Bc2 $14) 21... fxe4 $15 {[%emt 0:10:40]} 22. Ng5 {[%emt 0:00:58]} Bb7 {[%emt 0:00:06]} (22... c4 $142 23. Bc2 Bf5) 23. Nxe4 $11 {[%emt 0:01:54]} Bf8 {[%emt 0:03:42]} 24. Be3 {[%emt 0:45:45] Weighted Error Value: White=0.17 (very precise) /Black=0.16 (very precise)} 1/2-1/2

[Event "FIDE WSCC 65 2022"]
[Site "Assisi"]
[Date "2022.11.19"]
[Round "5.3"]
[White "Petran, Peter"]
[Black "Birnboim, Nathan"]
[Result "1/2-1/2"]
[ECO "A07"]
[WhiteElo "2213"]
[BlackElo "2361"]
[Annotator "TA"]
[PlyCount "91"]
[EventDate "2022.11.14"]
[EventType "swiss"]
[EventCountry "ITA"]
[SourceTitle "playchess.com"]
[Source "ChessBase"]
[SourceQuality "1"]
[TimeControl "40/5400+30:1800+30"]

{[%evp 15,91,0,7,10,20,29,31,25,43,30,30,20,20,27,20,0,-14,-36,0,-26,2,0,2,2,2,4,45,41,61,58,63,45,51,44,83,0,72,49,77,75,114,-17,-17,-17,-18,-18,-21,-18,0,-37,-37,-37,0,0,0,-5,0,-83,0,0,0,0,0,0,0,0,0,0,0,0,0,0,0,0,0,0,0,0]} 1. g3 {[%emt 0:00:15]} d5 {[%emt 0:00:19]} 2. Bg2 {[%emt 0:00:53]} Nf6 {[%emt 0:00:28]} 3. d3 {[%emt 0:01:14]} Nc6 {[%emt 0:01:14]} 4. Nf3 {[%emt 0:00:28]} g6 {[%emt 0:00:48]} 5. O-O {[%emt 0:00:48]} Bg7 {[%emt 0:00:10]} 6. Nbd2 {[%emt 0:00:16]} O-O {[%emt 0:00:16]} 7. e4 {[%emt 0:00:36]} e5 {[%emt 0:00:14]} 8. c3 {[%emt 0:02:09]} h6 {[%emt 0:01:04]} 9. Qc2 {[%emt 0:04:04] A07: Réti Opening: New York and Capablanca Systems.} Re8 {[%emt 0:01:15]} 10. b4 {[%emt 0:01:36]} a6 {[%emt 0:01:09]} 11. a3 {[%emt 0:00:22] White is slightly better.} dxe4 {[%emt 0:13:13]} 12. dxe4 {[%emt 0:00:13]} Be6 {[%emt 0:01:52]} 13. Bb2 {[%emt 0:00:33] [#]} Qc8 $146 {[%emt 0:03:14]} ({Predecessor:} 13... Nh7 14. Rfd1 Qf6 15. Nf1 Ng5 16. Nxg5 hxg5 17. Ne3 g4 18. Nd5 Bxd5 19. exd5 Ne7 {1-0 (40) Hera,I (2380)-Meszaros,A (2317) Hungary 2006}) 14. Rfe1 {[%emt 0:02:04]} Nd7 {[%emt 0:06:20]} 15. c4 {[%emt 0:03:13]} a5 {[%emt 0:01:09]} 16. Bc3 {[%emt 0:12:10]} g5 {[%emt 0:12:53]} 17. Rac1 {[%emt 0:17:41]} axb4 {[%emt 0:03:46]} 18. axb4 {[%emt 0:01:24]} Nd4 {[%emt 0:00:46]} 19. Bxd4 {[%emt 0:05:58]} exd4 {[%emt 0:00:17]} 20. Nb3 {[%emt 0:00:20]} Ra4 {[%emt 0:13:03]} 21. Nfxd4 {[%emt 0:08:13]} Rxb4 {[%emt 0:01:02]} 22. Nxe6 {[%emt 0:01:02]} Rxe6 {[%emt 0:02:11]} 23. Bh3 {[%emt 0:01:06]} Ne5 $1 {[%emt 0:00:19]} 24. Bxe6 {[%emt 0:04:05]} Qxe6 {[%emt 0:00:31]} 25. Nd2 {[%emt 0:08:42] Against Nf3+} ({White should play} 25. Kg2 $16) 25... Qh3 {[%emt 0:12:12]} (25... Rb2 $1 $11 26. Qxb2 Nf3+ 27. Nxf3 Bxb2) 26. Qd1 $1 $16 {[%emt 0:03:46]} g4 {[%emt 0:09:57] [#] Prevents Nf3.} 27. Re3 $1 {[%emt 0:01:14]} (27. Rb1 {gets mated.} Rxb1 28. f4 {[#]} gxf3 $1 29. Kf2 Qxh2+ 30. Ke3 Rxd1 31. Rxd1 Qe2+ 32. Kf4 Qxd1 33. Ke3 Qe2+ 34. Kd4 Qxd2+ 35. Kc5 Bf8+ 36. Kb5 Qb4#) 27... h5 {[%emt 0:02:27]} 28. Qf1 {[%emt 0:04:19]} (28. Ra3 $16) 28... Qxf1+ $11 {[%emt 0:00:38]} 29. Kxf1 {[%emt 0:00:17]} Bh6 $1 {[%emt 0:00:21]} 30. Re2 {[%emt 0:08:54]} Nf3 {[%emt 0:02:05]} 31. Nxf3 {[%emt 0:00:50] Threatens to win with Nd2.} gxf3 {[%emt 0:00:30]} 32. Rec2 {[%emt 0:00:43] aiming for Rd1.} (32. Re3 $5) 32... Bxc1 {[%emt 0:00:07]} 33. Rxc1 $15 {[%emt 0:00:03][%mdl 4096] Endgame KR-KR} c5 {[%emt 0:04:20]} 34. e5 {[%emt 0:02:52]} Rb2 {[%emt 0:01:22]} 35. h4 {[%emt 0:01:37]} Kf8 {[%emt 0:01:19]} 36. Kg1 {[%emt 0:00:38]} (36. Ke1 $1 $11) 36... Re2 {[%emt 0:02:50]} (36... Ke7 $17) 37. Rc3 $11 {[%emt 0:00:16] The position is equal.} Rxe5 {[%emt 0:01:31]} 38. Rxf3 {[%emt 0:00:03]} Re4 {[%emt 0:00:36]} 39. Rb3 {[%emt 0:00:48]} Rxc4 {[%emt 0:00:17] White must now prevent ...Rb4.} 40. Rxb7 {[%emt 0:00:06]} Kg7 {[%emt 0:00:17]} 41. Kg2 {[%emt 0:30:17]} Kg6 {[%emt 0:31:12]} 42. Kf3 {[%emt 0:01:41]} Rc2 {[%emt 0:00:21]} 43. Ke3 {[%emt 0:00:36]} f6 {[%emt 0:01:30]} 44. f3 {[%emt 0:00:35]} c4 {[%emt 0:00:00]} 45. Rc7 {[%emt 0:00:00]} Rc1 {[%emt 0:00:00]} 46. Ke4 {[%emt 0:04:30] Weighted Error Value: White=0.17 (very precise) /Black=0.16 (very precise)} 1/2-1/2

[Event "FIDE WSCC 65 2022"]
[Site "Assisi"]
[Date "2022.11.19"]
[Round "5.4"]
[White "Fernandez Garcia, Jose Luis"]
[Black "Maryasin, Boris"]
[Result "1/2-1/2"]
[ECO "B42"]
[WhiteElo "2358"]
[BlackElo "2258"]
[Annotator "TA"]
[PlyCount "125"]
[EventDate "2022.11.14"]
[EventType "swiss"]
[EventCountry "ITA"]
[SourceTitle "playchess.com"]
[Source "ChessBase"]
[SourceQuality "1"]
[TimeControl "40/5400+30:1800+30"]

{[%evp 13,125,33,77,76,67,58,62,35,55,26,35,37,27,19,36,6,13,7,6,0,41,45,31,42,48,33,27,29,31,8,10,0,0,-6,-14,-5,-8,-10,-6,-4,-8,-15,2,3,3,5,7,5,6,0,0,0,0,0,2,0,0,0,22,34,21,15,43,35,43,35,35,35,36,24,71,43,49,54,59,17,25,17,17,24,22,31,52,24,94,97,761,761,746,746,746,739,739,0,0,0,0,0,0,0,0,0,0,0,0,0,0,0,0,0,0,0,0,0]} 1. e4 {[%emt 0:00:26]} c5 {[%emt 0:00:31]} 2. Nf3 {[%emt 0:00:10]} e6 {[%emt 0:00:11]} 3. d4 {[%emt 0:00:10]} cxd4 {[%emt 0:00:09]} 4. Nxd4 {[%emt 0:00:04]} a6 {[%emt 0:00:35]} 5. Bd3 {[%emt 0:00:09]} Nf6 {[%emt 0:00:15][%cal Bg8f6,Bf6d7,Bd7c5,Bc5d3][%mdl 32]} 6. O-O {[%emt 0:00:11]} Qc7 {[%emt 0:00:34]} 7. Qe2 {[%emt 0:00:10]} Nc6 {[%emt 0:02:18]} 8. Nxc6 {[%emt 0:01:36] B42: Sicilian: Kan Variation: 5 Bd3.} dxc6 {[%emt 0:00:22]} 9. e5 {[%emt 0:15:33]} Nd7 {[%emt 0:00:15]} 10. Re1 {[%emt 0:00:07] White is more active. White is slightly better.} (10. Bf4 $5 {[%cal Rb1d2]}) 10... Nc5 {[%emt 0:00:18] [#]} 11. c4 $146 {[%emt 0:01:05]} ({Predecessor:} 11. Nc3 b5 12. Bg5 h6 13. Bf4 f5 14. Rad1 g6 15. Qf3 Nxd3 16. Rxd3 Bb7 17. Red1 {1-0 (41) Beykirch,W (2467)-Sutkus,V (2400) ICCF email 2011}) 11... Nxd3 {[%emt 0:00:20]} 12. Qxd3 {[%emt 0:00:02]} c5 {[%emt 0:03:36]} 13. Nc3 {[%emt 0:05:41]} Bd7 {[%emt 0:02:26]} 14. Bg5 {[%emt 0:00:37]} h6 {[%emt 0:00:49]} 15. Bh4 {[%emt 0:00:18]} g5 {[%emt 0:01:57] [#]} 16. Ne4 $1 {[%emt 0:04:17]} O-O-O {[%emt 0:05:41] Hoping for ...Bc6.} (16... Qxe5 $2 17. Rad1 Bc6 18. Nxg5 $1 $18 {[%mdl 512]}) (16... gxh4 17. Nf6+) 17. Nd6+ {[%emt 0:00:22]} Bxd6 {[%emt 0:00:28]} 18. exd6 {[%emt 0:00:05]} Qc6 {[%emt 0:01:32]} 19. Bg3 {[%emt 0:01:34]} f6 {[%emt 0:00:16] Against Be5} 20. f3 {[%emt 0:06:14]} e5 {[%emt 0:03:02]} 21. Bf2 {[%emt 0:00:16] With the idea Rab1.} Rhg8 {[%emt 0:08:15]} 22. Qe3 {[%emt 0:06:49]} (22. b4 {is interesting.} g4 23. f4 exf4 24. bxc5 f3 25. Rab1) 22... Be6 {[%emt 0:06:16]} 23. Rad1 {[%emt 0:02:48]} Rxd6 {[%emt 0:00:30]} 24. Rxd6 {[%emt 0:00:04]} Qxd6 {[%emt 0:00:09]} 25. Qxc5+ {[%emt 0:00:02]} Qxc5 {[%emt 0:00:17]} 26. Bxc5 {[%emt 0:02:27]} Bxc4 $11 {[%emt 0:03:14][%mdl 4096] Endgame KRB-KRB} 27. Be7 {[%emt 0:01:15]} Bxa2 {[%emt 0:01:39]} 28. Bxf6 {[%emt 0:00:07]} g4 {[%emt 0:01:54]} 29. fxg4 {[%emt 0:00:48]} Rxg4 {[%emt 0:00:08]} 30. Rxe5 {[%emt 0:00:13]} Rg6 {[%emt 0:02:11]} 31. Rf5 {[%emt 0:04:05]} Be6 {[%emt 0:03:21]} 32. Rf2 {[%emt 0:00:38]} Bd5 {[%emt 0:00:31][%cal Od5g2]} 33. Bc3 {[%emt 0:00:20]} Kd7 {[%emt 0:00:18]} 34. h3 {[%emt 0:00:28]} Kc6 {[%emt 0:00:58]} 35. Kh2 {[%emt 0:00:16]} Kc5 {[%emt 0:01:07]} 36. g4 {[%emt 0:01:03]} b5 {[%emt 0:00:16]} 37. Rf4 {[%emt 0:04:21]} Re6 {[%emt 0:00:37]} 38. b4+ {[%emt 0:00:36]} Kc6 {[%emt 0:01:38]} 39. Bd4 {[%emt 0:01:37]} Be4 {[%emt 0:00:39]} 40. Kg3 {[%emt 0:01:14]} Kd5 {[%emt 0:00:22]} 41. Bg7 {[%emt 0:31:17]} Kc4 {[%emt 0:30:53]} (41... Rg6 $11 42. Rf7 h5) 42. Bxh6 {[%emt 0:01:06]} Kxb4 {[%emt 0:00:21]} 43. h4 {[%emt 0:00:30]} Kb3 {[%emt 0:13:11]} 44. Bg7 {[%emt 0:01:10][%cal Of4e4] Threatens to win with Rxe4!} b4 {[%emt 0:01:28]} 45. h5 {[%emt 0:22:30][%cal Of4e4] And now Rxe4! would win.} a5 {[%emt 0:00:11] [#]} 46. Rxe4 $1 {[%emt 0:04:41]} Rxe4 {[%emt 0:00:07] KR-KB} 47. h6 {[%emt 0:00:02] aiming for g5.} a4 {[%emt 0:00:59]} 48. h7 {[%emt 0:00:45][%mdl 1024] White has compensation.} Re8 {[%emt 0:00:09] [#]} (48... Re3+ $1 $11 {remains equal.} 49. Kf4 Rh3) 49. g5 $1 $16 {[%emt 0:01:31][%cal Bg4g5,Bg5g6][%mdl 32]} a3 $2 {[%emt 0:00:46][%mdl 8192]} (49... Kc2 $16) 50. g6 $18 {[%emt 0:01:24]} Kc2 {[%emt 0:00:24] [#]} 51. Bf8 $1 {[%emt 0:02:03][%mdl 512]} a2 {[%emt 0:10:09]} 52. h8=Q {[%emt 0:01:06][%cal Oh8a1] Qa1! would kill now.} Rxf8 {[%emt 0:00:13] KQ-KR} 53. Qd4 $2 {[%emt 0:00:00]} (53. Qh2+ $18 Kb3 54. Qg1) 53... b3 $11 {[%emt 0:00:00] The position is equal.} 54. Qc5+ {[%emt 0:00:00]} Kb2 {[%emt 0:00:00]} (54... Kb1 55. Qxf8 a1=Q 56. g7 (56. Qf1+ Kb2 $11) 56... Qc3+ 57. Kg4 Qd4+ 58. Kg5 Qg1+ 59. Kf6 Qf1+ 60. Ke7 Qe2+ 61. Kd8 (61. Kd6 Qd3+ 62. Ke5 Qc3+ 63. Ke6 Qc4+ 64. Kf5 Qc2+ 65. Kf4 Qc1+ 66. Kf3 Qc6+ 67. Kg3 Qc7+ 68. Kg4 Qc4+ 69. Kg5 Qc1+ 70. Kh4 Qe1+ 71. Kh3 Qe6+ 72. Kh4 Qe1+ 73. Kg4 Qe4+ 74. Qf4 Qg6+ 75. Qg5 Qe4+ 76. Qf4 Qg6+ 77. Qg5 Qe4+ 78. Qf4 $11) 61... Qd3+ 62. Kc8 Qc4+ 63. Kd8 (63. Kb8 Qb5+ 64. Kc8 Qc6+ 65. Kd8 Qd5+ 66. Ke7 Qe4+ 67. Kf7 Qf5+ 68. Kg8 Qb5 $11) 63... Qd5+ 64. Ke8 (64. Ke7 Qe4+ 65. Kf7 Qf5+ 66. Kg8 Qb5 $11) 64... Qe6+ 65. Kd8 Qd5+ 66. Ke8 (66. Ke7 Qe4+ 67. Kf6 Qf4+ 68. Kg6 Qg4+ 69. Kh7 Qh5+ 70. Kg8 Qb5 $11) 66... Qe6+ 67. Kd8 Qd5+) 55. Qd4+ {[%emt 0:00:00]} Kb1 {[%emt 0:00:00]} 56. Qd1+ {[%emt 0:05:54]} Kb2 {[%emt 0:00:00]} 57. Qe2+ {[%emt 0:00:53]} Kb1 {[%emt 0:00:00]} 58. Qe4+ {[%emt 0:01:11]} Kb2 {[%emt 0:00:00]} 59. Qe5+ {[%emt 0:01:03]} Kb1 {[%emt 0:00:00]} 60. g7 {[%emt 0:01:14]} Rg8 {[%emt 0:00:00]} 61. Qe4+ {[%emt 0:01:05]} Kb2 {[%emt 0:00:00]} 62. Qd4+ {[%emt 0:00:25]} Kb1 {[%emt 0:00:00]} 63. Qd1+ {[%emt 0:00:11] Weighted Error Value: White=0.14 (very precise) /Black=0.07 (flawless)} 1/2-1/2

[Event "FIDE WSCC 65 2022"]
[Site "Assisi"]
[Date "2022.11.19"]
[Round "5.5"]
[White "Gaprindashvili, Nona"]
[Black "Chapman, Terry P D"]
[Result "1/2-1/2"]
[ECO "E20"]
[WhiteElo "2268"]
[BlackElo "2216"]
[Annotator "TA"]
[PlyCount "31"]
[EventDate "2022.11.14"]
[EventType "swiss"]
[EventCountry "ITA"]
[SourceTitle "playchess.com"]
[Source "ChessBase"]
[SourceQuality "1"]
[TimeControl "40/5400+30:1800+30"]

{[%evp 21,31,47,54,64,60,53,62,54,56,54,56,3]} 1. d4 {[%emt 0:00:06]} Nf6 {[%emt 0:00:04]} 2. c4 {[%emt 0:00:12]} e6 {[%emt 0:00:16]} 3. Nc3 {[%emt 0:00:10]} Bb4 {[%emt 0:00:09]} 4. g3 {[%emt 0:00:12]} c5 {[%emt 0:00:46]} 5. Nf3 {[%emt 0:00:11]} cxd4 {[%emt 0:00:36]} 6. Nxd4 {[%emt 0:00:12]} O-O {[%emt 0:00:09]} 7. Bg2 {[%emt 0:00:18]} d5 {[%emt 0:00:20]} 8. cxd5 {[%emt 0:03:21]} Nxd5 {[%emt 0:00:15]} 9. Bd2 {[%emt 0:00:43]} Nc6 {[%emt 0:07:45]} 10. Nxd5 {[%emt 0:05:00]} Bxd2+ {[%emt 0:02:20]} 11. Qxd2 {[%emt 0:00:03]} exd5 {[%emt 0:04:21] White is slightly better.} 12. O-O {[%emt 0:02:19] E20: Nimzo-Indian: 4 g3 and 4 f3.} Qb6 {[%emt 0:07:44]} 13. Rfd1 {[%emt 0:12:21]} Be6 {[%emt 0:07:43] [#]} 14. e3 $146 {[%emt 0:27:23]} ({Predecessor:} 14. Rac1 Rac8 15. Nxc6 bxc6 16. b4 a5 17. bxa5 Qa7 18. Qb4 Rb8 19. Qc5 Qa6 20. e4 dxe4 21. Bxe4 Bxa2 {1-0 (57) Orlov,G (2494)-Sinanan,J (2183) Seattle 2008}) 14... Rfd8 {[%emt 0:11:36]} 15. h3 {[%emt 0:02:35]} Rac8 {[%emt 0:09:13]} 16. Rac1 {[%emt 0:04:00] Black took control after the opening.  Weighted Error Value: White=0.01 (flawless) /Black=0.02 (flawless)} ({White should play} 16. Qe2 $14) 1/2-1/2

[Event "FIDE WSCC 65 2022"]
[Site "Assisi"]
[Date "2022.11.19"]
[Round "5.6"]
[White "Roos, Jean-Luc"]
[Black "Vaisser, Anatoly"]
[Result "0-1"]
[ECO "A57"]
[WhiteElo "2195"]
[BlackElo "2463"]
[Annotator "TA"]
[PlyCount "112"]
[EventDate "2022.11.14"]
[EventType "swiss"]
[EventCountry "ITA"]
[SourceTitle "playchess.com"]
[Source "ChessBase"]
[SourceQuality "1"]
[TimeControl "40/5400+30:1800+30"]

{[%evp 17,112,14,37,23,32,0,0,6,9,0,18,15,14,0,0,-16,-14,-40,-39,-55,-35,-35,-37,-39,-39,-48,-20,-20,-12,-9,0,0,8,0,0,-17,-2,-45,-40,-37,-36,-34,-38,-122,-117,-138,-67,-124,-116,-152,-172,-158,-149,-139,-164,-179,-175,-184,-200,-315,-321,-313,-308,-337,-325,-324,-340,-327,-325,-389,-375,-479,-477,-444,-377,-461,-447,-421,-409,-564,-536,-655,-636,-597,-571,-914,-918,-907,-871,-1035,-1012,-1013,-982,-1156,-1110,-1129,-1106]} 1. d4 {[%emt 0:00:07]} Nf6 {[%emt 0:00:16]} 2. c4 {[%emt 0:00:18]} c5 {[%emt 0:00:14]} 3. d5 {[%emt 0:00:13]} b5 {[%emt 0:00:05]} 4. cxb5 {[%emt 0:00:17]} a6 {[%emt 0:00:07]} 5. e3 {[%emt 0:00:22]} g6 {[%emt 0:00:25]} 6. Nc3 {[%emt 0:00:20]} Bg7 {[%emt 0:00:16]} 7. Nf3 {[%emt 0:01:52]} O-O {[%emt 0:01:05]} 8. a4 {[%emt 0:11:11]} e6 {[%emt 0:03:55]} 9. e4 {[%emt 0:08:46]} Bb7 {[%emt 0:01:12]} 10. Be2 {[%emt 0:07:23] A57: Benko/Volga Gambit.} exd5 {[%emt 0:01:17]} 11. bxa6 {[%emt 0:02:27]} (11. exd5 $5 {[%cal Re1g1]} axb5 12. Bxb5 $11) 11... Nxa6 {[%emt 0:00:40]} 12. exd5 {[%emt 0:01:43] [#] The position is equal.} d6 $146 {[%emt 0:04:32]} ({Predecessor:} 12... Nb4 13. d6 Ne4 14. Nb5 Qf6 15. O-O Rfb8 16. Ra3 Ra6 17. Bc4 Nxd6 18. Nxd6 Rxd6 {0-1 (46) Bertuli,R (2255)-Hervet,G (2462) France 1999}) 13. O-O {[%emt 0:01:48]} Nc7 {[%emt 0:06:59]} 14. Bc4 {[%emt 0:00:32]} Ba6 {[%emt 0:00:15]} 15. Bxa6 {[%emt 0:05:28]} Rxa6 {[%emt 0:00:13]} 16. Bg5 {[%emt 0:02:40]} Qa8 {[%emt 0:01:08][%cal Rf6d5]} 17. Qd2 {[%emt 0:08:04]} (17. Bxf6 $5 Bxf6 18. Re1 $11) 17... Ncxd5 {[%emt 0:05:06]} 18. Nxd5 {[%emt 0:03:25]} Qxd5 {[%emt 0:09:24]} 19. Qxd5 {[%emt 0:08:54]} Nxd5 {[%emt 0:00:04]} 20. Rad1 {[%emt 0:01:18]} Nf6 {[%emt 0:01:28][%cal Bd5f6,Bf6e4,Be4c3][%mdl 32]} 21. Bf4 {[%emt 0:01:07]} Rd8 {[%emt 0:03:56]} 22. b3 {[%emt 0:01:04]} Ne4 {[%emt 0:04:55]} 23. Rfe1 {[%emt 0:03:34]} Nc3 {[%emt 0:01:17]} 24. Rd3 {[%emt 0:01:07]} Na2 {[%emt 0:13:16]} 25. Red1 {[%emt 0:05:18][%cal Rd3d6]} Bf8 {[%emt 0:01:19]} 26. Bg5 {[%emt 0:03:41]} Rb8 {[%emt 0:01:12]} 27. Bf4 {[%emt 0:02:18]} Nb4 {[%emt 0:00:42]} 28. Re3 {[%emt 0:03:41]} ({Don't go for} 28. Bxd6 $2 Rd8 29. Bxf8 Rxd3 30. Rxd3 Nxd3 $19) 28... Rc8 {[%emt 0:02:51]} 29. g3 {[%emt 0:03:08]} d5 {[%emt 0:02:30][%cal Bd6d5,Bd5d4][%mdl 32]} 30. Be5 {[%emt 0:04:25]} (30. Rc3 $15) 30... d4 $1 $17 {[%emt 0:00:50]} 31. Ree1 {[%emt 0:02:07] [#]} Nd5 {[%emt 0:03:05]} (31... f6 $1 $17 {[%cal Rf6e5]} 32. Bf4 g5) 32. Rc1 {[%emt 0:03:17]} (32. g4 $15) 32... Rd8 {[%emt 0:09:21]} 33. g4 {[%emt 0:00:47]} f6 {[%emt 0:00:41]} 34. Bg3 {[%emt 0:00:21]} Rb6 {[%emt 0:04:26]} 35. Rb1 {[%emt 0:00:17]} Rb4 {[%emt 0:03:09] Black is more active.} 36. g5 {[%emt 0:00:50]} f5 {[%emt 0:03:45]} 37. Be5 {[%emt 0:01:00] [#]} Nc3 $1 {[%emt 0:00:40]} 38. Rb2 {[%emt 0:00:39]} (38. Ra1 {was worth a try.}) 38... Nxa4 $1 $19 {[%emt 0:00:28]} 39. Ra2 {[%emt 0:00:51]} Nc3 {[%emt 0:00:52]} ({Not} 39... Rxb3 40. Nxd4 cxd4 41. Rxa4 $17) 40. Ra7 {[%emt 0:01:05]} Rxb3 {[%emt 0:00:59]} 41. Bf6 {[%emt 0:30:21]} Rdb8 {[%emt 0:33:11] ...Nb5 is the strong threat.} 42. Ne5 {[%emt 0:00:00]} R3b7 {[%emt 0:00:00]} 43. Rea1 {[%emt 0:00:00]} Bd6 {[%emt 0:00:00]} 44. Nc6 {[%emt 0:00:00]} Rxa7 {[%emt 0:00:00]} 45. Rxa7 {[%emt 0:00:00]} Rc8 {[%emt 0:00:00]} 46. Nd8 {[%emt 0:00:09]} Bf8 {[%emt 0:04:11] Against Rg7+} 47. Ne6 {[%emt 0:00:38]} Re8 {[%emt 0:02:59]} 48. Ra6 {[%emt 0:02:19]} Kf7 {[%emt 0:00:39] Black is clearly winning.} 49. Nf4 {[%emt 0:00:23]} Ne2+ {[%emt 0:00:15]} 50. Nxe2 {[%emt 0:00:10]} Rxe2 {[%emt 0:00:02][%mdl 4096] Endgame KRB-KRB} 51. Ra7+ {[%emt 0:00:06]} Ke6 {[%emt 0:00:49] White must now prevent ...d3.} 52. Ra8 {[%emt 0:00:09]} Be7 {[%emt 0:00:42]} 53. Ra6+ {[%emt 0:00:16]} Kd5 {[%emt 0:00:20]} 54. Ra7 {[%emt 0:00:16]} Bd6 {[%emt 0:00:31]} 55. Kf1 {[%emt 0:00:18]} Rc2 {[%emt 0:00:57] Strongly threatening ...d3.} 56. Rd7 {[%emt 0:00:26]} Kc6 {[%emt 0:00:57][%csl LRd7,LRh2] Weighted Error Value: White=0.40/Black=0.06 (flawless)} 0-1